fUSD/lending_fUSD_20250814
["ID","MTS","AMOUNT","RATE_DAILY","PERIOD"]
[379165737,1755172239826,-150.0,0.00035158,2]
[379165738,1755172239835,-908.93943187,0.00035158,2]
[379165739,1755172239845,-150.0,0.00035161,2]
[379165740,1755172239856,-150.0,0.00035177,2]
[379165741,1755172239866,-151.27471094,0.00035177,2]
[379165742,1755172239875,-150.0,0.00035183,2]
[379165743,1755172239886,-803.0,0.000352,2]
[379165744,1755172239897,-500.0,0.000352,12]
[379165745,1755172239907,-150.0,0.00035202,2]
[379165746,1755172239917,-150.0,0.00035243,2]
[379165747,1755172239927,-150.0,0.00035244,2]
[379165748,1755172239936,-736.14265235,0.0003526,2]
[379165749,1755172239947,-1508.61173,0.0003526,2]
[379165750,1755172239957,-210.07778451,0.00035263,2]
[379165751,1755172239967,-150.0,0.0003527,2]
[379165752,1755172239977,-500.0,0.00035273,3]
[379165753,1755172239987,-150.0,0.00035274,2]
[379165755,1755172239997,-150.0,0.0003528,2]
[379165757,1755172240008,-150.0,0.00035281,2]
[379165758,1755172240018,-150.0,0.00035284,2]
[379165759,1755172240031,-150.0,0.00035286,2]
[379165760,1755172240044,-150.0,0.00035291,2]
[379165761,1755172240054,-150.0,0.00035299,2]
[379165762,1755172240065,-1000.0,0.000353,12]
[379165763,1755172240076,-1763.88858,0.000353,120]
[379165764,1755172240087,-8.0248885,0.00035302,2]
[379165765,1755172240096,-952.6684767,0.00035307,2]
[379165766,1755172240106,-150.0,0.00035323,2]
[379165767,1755172240116,-150.0,0.00035332,2]
[379165768,1755172240130,-150.0,0.00035334,2]
[379165769,1755172240139,-150.0,0.00035342,2]
[379165770,1755172240149,-538.17,0.00035342,2]
[379165771,1755172240159,-152.64,0.00035342,2]
[379165772,1755172240168,-427.83,0.00035342,2]
[379165773,1755172240179,-150.0,0.00035346,2]
[379165774,1755172240189,-150.0,0.00035349,2]
[379165775,1755172240199,-150.0,0.00035352,2]
[379165776,1755172240210,-150.0,0.00035358,2]
[379165777,1755172240219,-23885.59,0.00035361,15]
[379165778,1755172240228,-150.0,0.00035369,2]
[379165779,1755172240238,-1000.0,0.00035373,2]
[379165780,1755172240247,-150.0,0.00035374,2]
[379165781,1755172240256,-7459.91987213,0.00035377,2]
[379165782,1755172240265,-150.0,0.0003538,2]
[379165783,1755172240273,-150.0,0.00035387,2]
[379165784,1755172240282,-156.76335285,0.00035391,2]
[379165785,1755172240291,-1500.0,0.000354,12]
[379165786,1755172240299,-150.0,0.00035408,2]
[379165787,1755172240308,-150.0,0.00035409,2]
[379165788,1755172240317,-150.0,0.00035411,2]
[379165789,1755172240328,-150.0,0.00035411,2]
[379165790,1755172240338,-150.0,0.00035414,2]
[379165791,1755172240348,-150.0,0.00035419,2]
[379165792,1755172240358,-150.0,0.00035424,2]
[379165793,1755172240367,-150.0,0.00035425,2]
[379165794,1755172240378,-150.0,0.00035426,2]
[379165795,1755172240388,-507.0,0.00035429,11]
[379165796,1755172240397,-878.58004442,0.0003544,2]
[379165797,1755172240407,-150.0,0.00035441,2]
[379165798,1755172240418,-150.0,0.00035443,2]
[379165799,1755172240427,-150.0,0.00035443,2]
[379165800,1755172240437,-996.39752154,0.00035456,2]
[379165805,1755172240577,-210.07778451,0.00035458,2]
[379165807,1755172240587,-150.0,0.00035462,2]
[379165809,1755172240597,-150.0,0.00035464,2]
[379165811,1755172240607,-150.0,0.00035464,2]
[379165813,1755172240617,-150.0,0.00035475,2]
[379165815,1755172240627,-150.0,0.00035476,2]
[379165817,1755172240636,-150.0,0.00035479,2]
[379165818,1755172240645,-150.0,0.0003548,2]
[379165820,1755172240655,-1508.61173,0.0003549,2]
[379165822,1755172240664,-150.0,0.00035492,2]
[379165824,1755172240674,-150.0,0.00035493,2]
[379165827,1755172240683,-452.11,0.00035499,2]
[379165829,1755172240692,-2000.0,0.000355,12]
[379165830,1755172240702,-7459.91987213,0.00035506,2]
[379165833,1755172240712,-150.0,0.00035515,2]
[379165835,1755172240721,-5000.0,0.00035516,2]
[379165837,1755172240731,-332.79749575,0.00035516,2]
[379165839,1755172240739,-506.1890802,0.00035516,2]
[379165841,1755172240749,-150.0,0.00035541,2]
[379165843,1755172240758,-150.0,0.00035547,2]
[379165845,1755172240767,-500.0,0.00035547,3]
[379165847,1755172240776,-150.0,0.00035552,2]
[379165849,1755172240786,-150.0,0.00035553,2]
[379165851,1755172240795,-150.0,0.00035558,2]
[379165853,1755172240805,-150.0,0.00035575,2]
[379165855,1755172240814,-150.0,0.0003558,2]
[379165857,1755172240823,-150.0,0.00035582,2]
[379165859,1755172240833,-150.0,0.0003559,2]
[379165860,1755172240843,-7459.91987213,0.0003559,2]
[379165862,1755172240852,-14919.8397443,0.00035596,2]
[379165865,1755172240861,-150.0,0.00035597,2]
[379165866,1755172240870,-1000.0,0.00035598,2]
[379165868,1755172240879,-506.18908016,0.00035598,2]
[379165871,1755172240889,-2500.0,0.000356,12]
[379165873,1755172240898,-150.0,0.00035601,2]
[379165875,1755172240909,-7459.91987213,0.00035604,2]
[379165877,1755172240918,-7459.91987213,0.00035605,2]
[379165879,1755172240927,-102339.52409578,0.00035606,2]
[379165881,1755172240939,-5906.0,0.00035606,2]
[379165883,1755172240950,-33492.95347422,0.00035606,2]
[379165885,1755172240960,-6015.47415203,0.00035606,2]
[379165887,1755172240971,-10877.45617318,0.00035606,2]
[379165891,1755172240994,-837.57754225,0.00035606,2]
[379165896,1755172241039,-1387.36788809,0.00035606,2]
[379165898,1755172241050,-317.98127747,0.00035606,2]
[379165901,1755172241061,-18971.43339956,0.00035606,2]
[379165903,1755172241072,-999.15057559,0.00035606,2]
[379165946,1755172241796,-406.78185936,0.00018877,2]
[379165947,1755172241807,-93.21814064,0.00018877,2]
[379165948,1755172241817,-156.7009848,0.000299,2]
[379165950,1755172241827,-211.86673127,0.00035482,2]
[379165951,1755172241836,-193392.55423783,0.00035606,2]
[379165952,1755172241846,-1040.12656636,0.00035606,2]
[379165953,1755172241855,-150.0,0.00035607,2]
[379165954,1755172241865,-655.42284622,0.00035614,2]
[379165955,1755172241874,-13836.9293402,0.00035614,2]
[379165956,1755172241883,-3396.9730084,0.00035614,2]
[379165957,1755172241892,-1167.191,0.00035615,2]
[379165958,1755172241902,-156.2,0.00035615,2]
[379165959,1755172241912,-6161.48,0.00035615,120]
[379165960,1755172241921,-164396.41321516,0.00035616,3]
[379165961,1755172241943,-4347.01342177,0.00035616,3]
[379165962,1755172241954,-817.28181432,0.00035616,3]
[379165963,1755172242308,-741.44714122,0.00035616,3]
[379165964,1755172242320,-988.05227216,0.00035616,3]
[379165965,1755172242332,-711.09,0.00035616,3]
[379165966,1755172242343,-782.35003041,0.00035616,3]
[379165967,1755172242354,-410.84697194,0.00035616,3]
[379165979,1755172243936,-150.0,0.00032757,2]
[379165980,1755172243945,-246.36970393,0.00032907,2]
[379165981,1755172243955,-288.95212189,0.00033056,2]
[379165982,1755172243965,-150.0,0.00034473,2]
[379165983,1755172243975,-150.0,0.00034478,2]
[379165984,1755172243984,-2290.35951519,0.00035616,3]
[379165985,1755172244018,-331.53453985,0.00033205,2]
[379165986,1755172244027,-15236.8799277,0.00035616,3]
[379165987,1755172244287,-3669.93271301,0.00035616,3]
[379165988,1755172244299,-3060.13487,0.00035616,3]
[379165990,1755172246315,-1109.6,0.00031,30]
[379165991,1755172246325,-1109.6,0.000322,30]
[379165992,1755172246336,-374.11695781,0.00033355,2]
[379165993,1755172246346,-416.69937577,0.00033504,2]
[379165994,1755172246356,-459.28179374,0.00033654,2]
[379165995,1755172246366,-224.04083,0.0003374,2]
[379165996,1755172246375,-501.8642117,0.00033803,2]
[379165997,1755172246385,-544.44662966,0.00033952,2]
[379165998,1755172246394,-587.02904762,0.00034102,2]
[379165999,1755172246404,-629.61146559,0.00034251,2]
[379166000,1755172246414,-44775.88229618,0.00035616,3]
[379166001,1755172246527,-672.19388355,0.00034401,2]
[379166002,1755172246538,-7627.80611645,0.00035616,3]
[379166003,1755172246550,-64151.98879963,0.00035616,3]
[379166004,1755172246664,-460.54680861,0.00035616,3]
[379166039,1755172442421,300.0,0.00029188,120]
[379166040,1755172443175,500.0,0.00029188,120]
[379166041,1755172451002,2500.0,0.00023994,120]
[379166042,1755172451132,2500.0,0.00029188,120]
[379166122,1755172740933,163.75,0.00028769,120]
[379166175,1755172902727,1091.21203572,0.00030136,120]
[379166179,1755173064706,4051.9,0.00030137,120]
[379166180,1755173117545,185.19,0.00016426,2]
[379166187,1755173326768,173.93,0.00013699,2]
[379166188,1755173405310,152.38,0.00030136,120]
[379166191,1755173431470,-171.89516933,0.0001872,2]
[379166192,1755173431480,-250.0,0.00018865,2]
[379166193,1755173431490,-401.08872844,0.0001901,2]
[379166194,1755173431501,-250.0,0.00019325,2]
[379166195,1755173431511,-1778.0,0.00019348,2]
[379166196,1755173431520,-1778.0,0.0001973,2]
[379166197,1755173431530,-1200.0,0.00019817,2]
[379166198,1755173431539,-1778.0,0.00019818,2]
[379166199,1755173431548,-1200.0,0.00019818,2]
[379166200,1755173431558,-300.0,0.00019818,2]
[379166201,1755173431568,-300.0,0.00019818,2]
[379166202,1755173431579,-4839.0,0.00019819,2]
[379166203,1755173431589,-1778.0,0.00019861,2]
[379166204,1755173431598,-1221.83783313,0.00019866,2]
[379166205,1755173431610,-556.16216687,0.00019866,2]
[379166206,1755173431619,-1540.0,0.00019884,2]
[379166207,1755173431629,-1778.0,0.00019963,2]
[379166208,1755173431638,-1778.0,0.00020075,2]
[379166209,1755173431648,-1778.0,0.00020113,2]
[379166210,1755173431658,-1778.0,0.0002014,2]
[379166211,1755173431667,-173.93,0.00020187,2]
[379166212,1755173431677,-1540.0,0.00020266,2]
[379166213,1755173431687,-1778.0,0.00020359,2]
[379166214,1755173431696,-1778.0,0.00020447,2]
[379166215,1755173431706,-1540.0,0.00020455,2]
[379166216,1755173431715,-1108.72,0.00020468,2]
[379166217,1755173431725,-1000.0,0.00020524,2]
[379166218,1755173431734,-250.0,0.00020532,2]
[379166219,1755173431743,-150.0,0.00020532,2]
[379166220,1755173431753,-170.0,0.00020535,7]
[379166221,1755173431762,-200.0,0.00020535,2]
[379166222,1755173431772,-250.0,0.00020592,2]
[379166223,1755173431781,-1778.0,0.00020649,2]
[379166224,1755173431790,-1540.0,0.00020666,2]
[379166225,1755173431799,-1540.0,0.00020776,2]
[379166226,1755173431809,-423.32641562,0.00020799,2]
[379166227,1755173431819,-1540.0,0.000208,2]
[379166228,1755173431828,-33767.83086146,0.0002082,2]
[379166229,1755173431838,-25576.0,0.00020847,2]
[379166231,1755173431847,-150.0,0.00020872,2]
[379166233,1755173431856,-1778.0,0.00020885,2]
[379166235,1755173431865,-1540.0,0.00020965,2]
[379166237,1755173431875,-1778.0,0.00021014,2]
[379166239,1755173431884,-1778.0,0.00021018,2]
[379166241,1755173431894,-1778.0,0.00021058,2]
[379166242,1755173431903,-188.61,0.00021072,2]
[379166243,1755173431913,-168.64,0.00021092,2]
[379166244,1755173431923,-1778.0,0.00021101,2]
[379166245,1755173431933,-9695.99,0.0002164,2]
[379166246,1755173431943,-1680.0,0.00021686,2]
[379166247,1755173431952,-3994.55,0.00021751,2]
[379166248,1755173431962,-666.0,0.00021918,3]
[379166249,1755173431971,-201.27432189,0.00021918,2]
[379166250,1755173431980,-200.0,0.00021918,2]
[379166251,1755173431990,-336.0,0.00022,2]
[379166252,1755173431999,-336.0,0.00022192,7]
[379166253,1755173432009,-174.5,0.00022242,2]
[379166254,1755173432018,-1850.47,0.0002236,2]
[379166255,1755173432027,-336.0,0.00022466,7]
[379166256,1755173432037,-6873.33151521,0.0002267,2]
[379166257,1755173432047,-336.0,0.0002274,7]
[379166258,1755173432056,-163.8,0.00022866,2]
[379166259,1755173432066,-336.0,0.00023014,7]
[379166260,1755173432075,-336.0,0.00023014,7]
[379166261,1755173432085,-171.43,0.00023726,2]
[379166262,1755173432095,-1777.0,0.00023732,2]
[379166263,1755173432104,-342.0,0.00024164,7]
[379166264,1755173432113,-336.0,0.00024164,7]
[379166265,1755173432123,-2000.0,0.00024658,15]
[379166266,1755173432132,-1494.0640855,0.00024658,15]
[379166267,1755173432144,-505.9359145,0.00024658,15]
[379166268,1755173432154,-72.62770667,0.0002498,2]
[379166269,1755173432165,-585.8379997,0.0002498,2]
[379166270,1755173432222,-341.52429363,0.0002498,2]
[379166271,1755173432232,-150.99,0.0002498,2]
[379166272,1755173432241,-835.07,0.0002498,2]
[379166273,1755173432251,-9999.99,0.0002498,2]
[379166274,1755173432260,-336.0,0.00025131,7]
[379166275,1755173432270,-336.0,0.00025315,7]
[379166276,1755173432279,-174.5,0.0002565,2]
[379166277,1755173432288,-4632.51724095,0.00025686,2]
[379166278,1755173432298,-500.0,0.00025785,2]
[379166279,1755173432307,-388.78980083,0.00025785,2]
[379166280,1755173432317,-500.0,0.00025785,2]
[379166281,1755173432329,-1000.0,0.00025785,2]
[379166282,1755173432350,-500.81181808,0.000258,2]
[379166283,1755173432361,-500.0,0.000258,2]
[379166284,1755173432376,-319.92038208,0.000258,2]
[379166285,1755173432398,-336.0,0.00026098,7]
[379166286,1755173432409,-500.0,0.00026348,2]
[379166287,1755173432419,-336.0,0.00026466,7]
[379166288,1755173432429,-211.86673127,0.00026573,2]
[379166289,1755173432439,-173.93,0.00026676,2]
[379166290,1755173432449,-4632.51724094,0.00026778,2]
[379166291,1755173432459,-336.0,0.00027064,7]
[379166292,1755173432469,-509.0,0.00027137,2]
[379166293,1755173432479,-171.43,0.00027285,2]
[379166294,1755173432489,-826.0,0.00027366,7]
[379166295,1755173432508,-500.0,0.00027366,2]
[379166296,1755173432528,-9551.0,0.00027366,7]
[379166297,1755173432538,-500.0,0.00027366,7]
[379166298,1755173432548,-500.0,0.00027366,7]
[379166299,1755173432558,-150.0,0.00027366,7]
[379166300,1755173432567,-500.0,0.00027366,7]
[379166301,1755173432577,-500.0,0.00027366,7]
[379166302,1755173432589,-500.0,0.00027366,7]
[379166303,1755173432598,-150.0,0.00027366,7]
[379166304,1755173432608,-509.0,0.00027366,7]
[379166305,1755173432617,-500.0,0.00027366,7]
[379166306,1755173432627,-500.0,0.00027366,7]
[379166307,1755173432636,-150.0,0.00027366,7]
[379166308,1755173432646,-150.0,0.00027366,7]
[379166309,1755173432655,-150.0,0.00027366,7]
[379166310,1755173432665,-500.0,0.00027366,7]
[379166311,1755173432675,-500.0,0.00027366,7]
[379166312,1755173432896,-150.0,0.00027366,2]
[379166313,1755173432906,-500.0,0.00027366,7]
[379166314,1755173432916,-423.0,0.00027366,7]
[379166315,1755173432926,-150.0,0.00027366,2]
[379166316,1755173432935,-500.0,0.00027366,7]
[379166317,1755173432945,-150.0,0.00027366,2]
[379166318,1755173432954,-1178.0,0.00027366,7]
[379166319,1755173432964,-1108.0,0.00027366,7]
[379166320,1755173432974,-167.93,0.00027397,80]
[379166321,1755173432983,-7132.62973141,0.00027439,2]
[379166322,1755173432993,-336.0,0.00027616,14]
[379166323,1755173433002,-11944.5635889,0.0002763,2]
[379166324,1755173433011,-826.0,0.0002764,7]
[379166325,1755173433021,-500.0,0.0002764,2]
[379166326,1755173433030,-9551.0,0.0002764,7]
[379166327,1755173433040,-500.0,0.0002764,7]
[379166328,1755173433050,-500.0,0.0002764,7]
[379166329,1755173433060,-150.0,0.0002764,7]
[379166330,1755173433069,-500.0,0.0002764,7]
[379166331,1755173433079,-500.0,0.0002764,7]
[379166332,1755173433090,-500.0,0.0002764,7]
[379166333,1755173433099,-153.71935173,0.0002764,7]
[379166334,1755173433109,-509.0,0.0002764,7]
[379166335,1755173433118,-500.0,0.0002764,7]
[379166336,1755173433127,-500.0,0.0002764,7]
[379166337,1755173433137,-150.0,0.0002764,7]
[379166338,1755173433147,-150.0,0.0002764,7]
[379166339,1755173433156,-150.0,0.0002764,7]
[379166340,1755173433165,-500.0,0.0002764,7]
[379166341,1755173433175,-500.0,0.0002764,7]
[379166342,1755173433184,-423.0,0.0002764,7]
[379166343,1755173433194,-500.0,0.0002764,7]
[379166344,1755173433203,-1178.0,0.0002764,7]
[379166345,1755173433213,-1108.0,0.0002764,7]
[379166346,1755173433223,-161.0,0.00027808,2]
[379166347,1755173433233,-361.17805125,0.0002787,2]
[379166348,1755173433245,-4271.33918969,0.0002787,2]
[379166349,1755173433255,-1987.92993415,0.00027904,2]
[379166350,1755173433267,-2000.0,0.00027904,2]
[379166351,1755173437350,-256.9635532,0.0002175,2]
[379166352,1755173437373,-62.65930351,0.0002175,2]
[379166353,1755173437383,-259.74670819,0.0002175,2]
[379166354,1755173437395,-286.35424269,0.0002175,2]
[379166355,1755173437404,-7956.63365475,0.00027904,2]
[379166356,1755173437413,-826.0,0.00027914,7]
[379166357,1755173437423,-500.0,0.00027914,2]
[379166358,1755173437432,-9551.0,0.00027914,7]
[379166359,1755173437442,-500.0,0.00027914,7]
[379166360,1755173437451,-458.57502187,0.00027914,7]
[379166361,1755173437460,-150.0,0.00027914,7]
[379166362,1755173437469,-500.0,0.00027914,7]
[379166363,1755173437479,-500.0,0.00027914,7]
[379166364,1755173437489,-500.0,0.00027914,7]
[379166365,1755173437500,-509.0,0.00027914,7]
[379166366,1755173437511,-500.0,0.00027914,7]
[379166367,1755173437520,-500.0,0.00027914,7]
[379166368,1755173437530,-200.0,0.00027914,7]
[379166369,1755173437539,-150.0,0.00027914,7]
[379166370,1755173437550,-500.0,0.00027914,7]
[379166371,1755173437559,-500.0,0.00027914,7]
[379166372,1755173437568,-423.0,0.00027914,7]
[379166373,1755173437579,-500.0,0.00027914,7]
[379166374,1755173437590,-1178.0,0.00027914,7]
[379166375,1755173437599,-1108.0,0.00027914,7]
[379166376,1755173437609,-336.0,0.00028031,14]
[379166397,1755173437947,-503.0,0.0002811,2]
[379166400,1755173437972,-11944.5635889,0.00028178,2]
[379166402,1755173437982,-826.0,0.00028188,7]
[379166403,1755173437991,-500.0,0.00028188,2]
[379166405,1755173438001,-9551.0,0.00028188,7]
[379166407,1755173438011,-500.0,0.00028188,7]
[379166409,1755173438020,-150.0,0.00028188,7]
[379166412,1755173438030,-500.0,0.00028188,7]
[379166414,1755173438040,-554.35718388,0.00028188,7]
[379166415,1755173438049,-500.0,0.00028188,7]
[379166417,1755173438058,-509.0,0.00028188,7]
[379166420,1755173438068,-500.0,0.00028188,7]
[379166421,1755173438077,-500.0,0.00028188,7]
[379166423,1755173438086,-150.0,0.00028188,7]
[379166425,1755173438096,-500.0,0.00028188,7]
[379166426,1755173438105,-500.0,0.00028188,7]
[379166427,1755173438114,-423.0,0.00028188,7]
[379166428,1755173438124,-500.0,0.00028188,7]
[379166429,1755173438133,-1178.0,0.00028188,7]
[379166430,1755173438142,-1108.0,0.00028188,7]
[379166431,1755173438151,-509.0,0.00028238,3]
[379166432,1755173438160,-5972.28179445,0.00028452,2]
[379166433,1755173438169,-826.0,0.00028462,7]
[379166434,1755173438179,-500.0,0.00028462,2]
[379166435,1755173438188,-9551.0,0.00028462,7]
[379166436,1755173438197,-321.68571299,0.00028462,7]
[379166437,1755173438206,-216.99248073,0.00028462,7]
[379166438,1755173438215,-500.0,0.00028462,7]
[379166439,1755173438224,-500.0,0.00028462,7]
[379166440,1755173438234,-509.0,0.00028462,7]
[379166441,1755173438243,-150.0,0.00028462,7]
[379166442,1755173438252,-500.0,0.00028462,7]
[379166443,1755173438262,-150.0,0.00028462,7]
[379166444,1755173438271,-500.0,0.00028462,7]
[379166445,1755173438280,-500.0,0.00028462,7]
[379166447,1755173438289,-423.0,0.00028462,7]
[379166449,1755173438298,-500.0,0.00028462,7]
[379166450,1755173438307,-1178.0,0.00028462,7]
[379166452,1755173438317,-1108.0,0.00028462,7]
[379166454,1755173438326,-165.82967603,0.00028636,2]
[379166457,1755173438335,-2049.37431923,0.00028726,2]
[379166459,1755173438347,-673.02212015,0.00028726,2]
[379166574,1755173439422,-315.43445248,0.00028088,2]
[379166576,1755173439432,-169.09266752,0.00028726,2]
[379166579,1755173439459,-1208.9,0.00028726,2]
[379166582,1755173439470,-1209.2165342,0.00028726,2]
[379166885,1755173442506,-500.0,0.0002175,2]
[379166887,1755173442516,-304.02202248,0.0002175,2]
[379166890,1755173442527,-168.1308381,0.0002175,2]
[379166892,1755173442537,-6634.9579478,0.00028726,2]
[379166894,1755173442546,-826.0,0.00028736,7]
[379166896,1755173442556,-500.0,0.00028736,2]
[379166898,1755173442566,-9551.0,0.00028736,7]
[379166932,1755173442879,-500.0,0.00028736,7]
[379166934,1755173442893,-500.0,0.00028736,7]
[379166936,1755173442903,-509.0,0.00028736,7]
[379166938,1755173442912,-500.0,0.00028736,7]
[379166941,1755173442921,-226.72108677,0.00028736,7]
[379166943,1755173442931,-500.0,0.00028736,7]
[379166944,1755173442940,-500.0,0.00028736,7]
[379166947,1755173442950,-500.0,0.00028736,7]
[379166949,1755173442959,-423.0,0.00028736,7]
[379166951,1755173442968,-500.0,0.00028736,7]
[379166953,1755173442978,-1178.0,0.00028736,7]
[379166955,1755173442987,-1108.0,0.00028736,7]
[379166957,1755173442997,-745.15356544,0.00028827,2]
[379166959,1755173443007,-4632.51724094,0.00028963,2]
[379166961,1755173443016,-336.0,0.00028997,14]
[379166962,1755173443026,-11944.5635889,0.00029,2]
[379166965,1755173443036,-826.0,0.0002901,7]
[379166967,1755173443045,-500.0,0.0002901,2]
[379166969,1755173443055,-9551.0,0.0002901,7]
[379166971,1755173443065,-500.0,0.0002901,7]
[379166972,1755173443075,-500.0,0.0002901,7]
[379166974,1755173443084,-509.0,0.0002901,7]
[379166976,1755173443094,-500.0,0.0002901,7]
[379166978,1755173443104,-500.0,0.0002901,7]
[379166980,1755173443113,-500.0,0.0002901,7]
[379166982,1755173443122,-423.0,0.0002901,7]
[379166984,1755173443132,-500.0,0.0002901,7]
[379166986,1755173443141,-1178.0,0.0002901,7]
[379166989,1755173443150,-1108.0,0.0002901,7]
[379166991,1755173443159,-174.5,0.00029057,2]
[379166993,1755173443169,-879.45573206,0.00029274,2]
[379166999,1755173443220,-5092.82606239,0.00029274,2]
[379167001,1755173443229,-826.0,0.00029284,7]
[379167003,1755173443239,-500.0,0.00029284,2]
[379167005,1755173443248,-9551.0,0.00029284,7]
[379167007,1755173443258,-500.0,0.00029284,7]
[379167009,1755173443267,-500.0,0.00029284,7]
[379167011,1755173443276,-509.0,0.00029284,7]
[379167013,1755173443285,-500.0,0.00029284,7]
[379167015,1755173443294,-167.78595225,0.00029284,7]
[379167017,1755173443304,-500.0,0.00029284,7]
[379167019,1755173443314,-423.0,0.00029284,7]
[379167021,1755173443324,-500.0,0.00029284,7]
[379167023,1755173443332,-1178.0,0.00029284,7]
[379167025,1755173443343,-1108.0,0.00029284,7]
[379167027,1755173443352,-509.0,0.0002934,4]
[379167029,1755173443361,-11944.5635889,0.00029548,2]
[379167031,1755173443370,-826.0,0.00029558,7]
[379167033,1755173443380,-500.0,0.00029558,2]
[379167035,1755173443389,-9551.0,0.00029558,7]
[379167037,1755173443398,-250.5590692,0.00029558,7]
[379167039,1755173443407,-500.0,0.00029558,7]
[379167041,1755173443417,-509.0,0.00029558,7]
[379167043,1755173443427,-500.0,0.00029558,7]
[379167045,1755173443436,-500.0,0.00029558,7]
[379167047,1755173443445,-423.0,0.00029558,7]
[379167049,1755173443455,-500.0,0.00029558,7]
[379167051,1755173443464,-1178.0,0.00029558,7]
[379167053,1755173443474,-1108.0,0.00029558,7]
[379167055,1755173443484,-150.0,0.00029596,4]
[379167057,1755173443493,-500.0,0.00029596,4]
[379167059,1755173443505,-150.0,0.00029596,4]
[379167061,1755173443515,-500.0,0.00029596,4]
[379167063,1755173443524,-150.0,0.00029596,4]
[379167065,1755173443533,-150.0,0.00029596,4]
[379167067,1755173443544,-500.0,0.00029596,4]
[379167069,1755173443554,-500.0,0.00029596,4]
[379167071,1755173443563,-150.36249922,0.00029596,4]
[379167073,1755173443572,-320.83,0.00029624,30]
[379167075,1755173443582,-351.49740259,0.00029711,2]
[379167077,1755173443592,-5972.28179445,0.00029822,2]
[379167079,1755173443601,-826.0,0.00029832,7]
[379167081,1755173443610,-500.0,0.00029832,2]
[379167083,1755173443620,-5281.94273373,0.00029832,7]
[379167085,1755173443633,-4269.05726627,0.00029832,7]
[379167087,1755173443642,-500.0,0.00029832,7]
[379167089,1755173443651,-509.0,0.00029832,7]
[379167091,1755173443661,-500.0,0.00029832,7]
[379167093,1755173443671,-230.37265393,0.00029832,7]
[379167095,1755173443680,-423.0,0.00029832,7]
[379167097,1755173443690,-500.0,0.00029832,7]
[379167099,1755173443699,-1178.0,0.00029832,7]
[379167101,1755173443709,-1108.0,0.00029832,7]
[379167103,1755173443719,-150.0,0.0002987,4]
[379167105,1755173443729,-500.0,0.0002987,4]
[379167107,1755173443739,-150.0,0.0002987,4]
[379167109,1755173443749,-500.0,0.0002987,4]
[379167111,1755173443758,-150.0,0.0002987,4]
[379167113,1755173443768,-239.13021413,0.0002987,4]
[379167115,1755173443777,-500.0,0.0002987,4]
[379167117,1755173443787,-500.0,0.0002987,4]
[379167119,1755173443796,-165.4144006,0.000299,2]
[379167121,1755173443805,-5972.28179445,0.00030045,2]
[379167123,1755173443814,-4632.51724094,0.00030055,2]
[379167125,1755173443824,-2509.56607788,0.00030096,2]
[379167130,1755173443863,-443.14489048,0.00030096,2]
[379167139,1755173443937,-315.43445245,0.00029188,2]
[379167141,1755173443947,-3019.57082609,0.00030096,2]
[379167143,1755173443956,-826.0,0.00030106,7]
[379167145,1755173443966,-500.0,0.00030106,2]
[379167147,1755173443975,-9551.0,0.00030106,7]
[379167149,1755173443985,-268.9347343,0.00030106,7]